bitfinex-derivatives/quotes_SOLF0:USTF0_20251025
["timestamp","ask_amount","ask_price","bid_price","bid_amount"]
[1761375574888,3.93679538,194.07,194.03,2.08]
[1761375575092,3.93679538,194.06,194.03,2.08]
[1761375575291,2.7,194.07,194.03,2.08]
[1761375575590,6.63727928,194.06,194.03,2.08]
[1761375575788,2.7,194.06,194.03,2.08]
[1761375575988,2.7,194.06,194.04,4.6375]
[1761375576787,1.49605238,194.05,194.04,4.6375]
[1761375576989,1.49605238,194.05,194.04,6.7175]
[1761375583800,2.79,194.07,194.04,6.7175]
[1761375585501,2.79,194.07,194.05,2.08]
[1761375587300,2.79,194.07,194.05,6.7173]
[1761375593917,2.79,194.07,194.05,4.6373]
[1761375599111,2.79,194.07,194.05,6.7173]
[1761375601613,1.49605238,194.09,194.06,2.08]
[1761375601808,2.65,194.08,194.06,2.08]
[1761375602012,2.65,194.08,194.05,4.6374]
[1761375602213,4.35554215,194.13,194.05,4.6374]
[1761375602214,4.14605238,194.06,194.05,4.6374]
[1761375604018,1.49605238,194.06,194.05,6.7174]
[1761375605320,5.42942035,194.06,194.05,6.7174]
[1761375607826,1.49605238,194.06,194.05,6.7174]
[1761375618640,4.22605238,194.06,194.05,6.7174]
[1761375620237,4.22605238,194.06,194.05,4.6374]
[1761375625844,4.22605238,194.06,194.05,6.7174]
[1761375627152,1.49605238,194.06,194.05,6.7174]
[1761375628756,4.22605238,194.06,194.05,6.7174]
[1761375628956,1.49605238,194.06,194.05,6.7174]
[1761375638667,2.73,194.09,194.05,6.7174]
[1761375638961,2.61,194.07,194.05,6.7174]
[1761375646672,2.61,194.07,194.06,2.08]
[1761375646972,6.52725354,194.07,194.06,2.08]
[1761375650175,6.52725354,194.07,194.05,4.6374]
[1761375650374,2.61,194.07,194.05,6.7174]
[1761375652779,2.61,194.07,194.05,4.6374]
[1761375652979,2.61,194.07,194.06,2.08]
[1761375653178,6.52903856,194.07,194.06,2.08]
[1761375656182,3.91903856,194.07,194.06,2.08]
[1761375657284,6.52903856,194.07,194.06,2.08]
[1761375659084,6.52903856,194.07,194.05,6.7174]
[1761375659283,2.61,194.07,194.05,6.7174]
[1761375663890,2.64,194.09,194.07,2.08]
[1761375664186,3.92801472,194.08,194.07,2.08]
[1761375664486,2.64,194.12,194.09,2.08]
[1761375664691,3.92865014,194.11,194.09,2.08]
[1761375664885,3.92865014,194.1,194.09,2.08]
[1761375665893,2.64,194.13,194.1,4.636]
[1761375666189,6.56684937,194.12,194.1,4.636]
[1761375666392,3.92684937,194.11,194.1,4.636]
[1761375666891,3.92684937,194.11,194.1,6.716]
[1761375671192,2.64,194.12,194.1,6.716]
[1761375679005,2.33674063,194.14,194.11,2.08]
[1761375679296,3.92001358,194.13,194.11,2.08]
[1761375679500,2.58,194.13,194.11,2.08]
[1761375681509,2.58,194.11,193.99,2.08]
[1761375681704,4.91674063,194.08,193.99,2.08]
[1761375682303,2.58,194.07,194.04,6.7175]
[1761375684700,2.58,194.07,194.05,2.08]
[1761375692817,2.58,194.07,194.05,6.7172]
[1761375693823,4.91674063,194.08,194.06,2.08]
[1761375696321,2.58,194.07,194.06,2.08]
[1761375696723,4.91674063,194.08,194.06,2.08]
[1761375699125,2.58,194.08,194.06,2.08]
[1761375701735,2.58,194.08,194.05,4.6372]
[1761375701938,2.58,194.08,194.04,2.08]
[1761375705234,2.58,194.08,194.04,6.7175]
[1761375705531,2.58,194.08,194.05,2.08]
[1761375712149,2.58,194.08,194.05,6.7172]
[1761375712541,2.58,194.08,194.06,2.08]
[1761375716351,1.49530829,194.09,194.07,2.08]
[1761375716551,2.84,194.11,194.07,2.08]
[1761375716751,3.91541412,194.1,194.07,2.08]
[1761375717051,3.91541412,194.09,194.07,2.08]
[1761375717253,2.84,194.1,194.07,2.08]
[1761375717443,3.9158113,194.09,194.07,2.08]
[1761375717639,2.84,194.1,194.07,2.08]
[1761375718043,2.84,194.1,194.07,6.7168]
[1761375719650,2.72,194.11,194.09,2.08]
[1761375719847,3.91631622,194.1,194.09,2.08]
[1761375720851,2.72,194.11,194.09,2.08]
[1761375721349,2.72,194.11,194.08,4.6365]
[1761375721551,2.72,194.11,194.08,6.7165]
[1761375721952,3.90785507,194.1,194.08,6.7165]
[1761375722148,2.72,194.11,194.08,6.7165]
[1761375722354,3.90822767,194.1,194.09,2.08]
[1761375722550,2.72,194.11,194.09,6.7163]
[1761375722946,2.72,194.11,194.09,4.6363]
[1761375726357,2.72,194.11,194.09,6.7163]
[1761375727352,2.72,194.11,194.09,4.6363]
[1761375727564,4.21530829,194.18,194.1,2.08]
[1761375727859,2.67,194.16,194.1,2.08]
[1761375728059,5.95670129,194.18,194.1,2.08]
[1761375728060,6.57980937,194.15,194.1,2.08]
[1761375728259,2.67,194.15,194.1,2.08]
[1761375728957,2.67,194.15,194.12,4.6357]
[1761375729261,2.67,194.15,194.12,6.7157]
[1761375734262,2.67,194.15,194.13,2.08]
[1761375734464,2.67,194.15,194.14,2.08]
[1761375744559,2.67,194.15,194.11,4.6359]
[1761375744761,2.67,194.12,194.11,4.6359]
[1761375749165,2.67,194.12,194.11,6.7159]
[1761375749764,1.49530829,194.13,194.11,6.7159]
[1761375750267,4.16530829,194.13,194.11,6.7159]
[1761375752567,4.16530829,194.13,194.11,4.6359]
[1761375752769,1.49530829,194.13,194.12,2.08]
[1761375753363,4.16530829,194.13,194.12,2.08]
[1761375753769,1.49530829,194.13,194.12,2.08]
[1761375754867,4.16530829,194.16,194.14,2.08]
[1761375755063,8.04491603,194.16,194.14,2.08]
[1761375755267,4.16530829,194.16,194.14,2.08]
[1761375756377,4.16530829,194.16,194.14,4.6351]
[1761375756677,1.49530829,194.16,194.15,2.08]
[1761375757072,4.16530829,194.16,194.14,6.7151]
[1761375762175,2.67,194.16,194.14,6.7151]
[1761375763881,2.67,194.16,194.14,4.6351]
[1761375764382,2.67,194.16,194.14,6.7051]
[1761375765682,2.67,194.16,194.14,4.6351]
[1761375766281,2.67,194.16,194.14,6.7051]
[1761375771289,3.89017069,194.15,194.14,6.7051]
[1761375772389,6.65017069,194.15,194.14,4.6351]
[1761375773297,7.55869112,194.21,194.15,2.07]
[1761375773591,2.76,194.23,194.2,2.07]
[1761375773792,11.95469365,194.3,194.2,2.07]
[1761375773793,7.55869112,194.26,194.2,2.07]
[1761375773987,2.76,194.26,194.2,2.07]
[1761375774592,2.76,194.26,194.23,2.07]
[1761375774786,2.76,194.26,194.22,4.6331]
[1761375774787,2.76,194.26,194.22,6.7031]
[1761375780600,2.76,194.26,194.22,4.6331]
[1761375782101,2.76,194.26,194.22,6.7131]
[1761375782293,2.71,194.25,194.22,6.7131]
[1761375786199,2.71,194.25,194.23,2.08]
[1761375788908,2.33462175,194.26,194.23,2.08]
[1761375789407,2.78,194.25,194.22,6.7131]
[1761375789803,2.78,194.25,194.22,4.6331]
[1761375790004,2.78,194.25,194.23,2.08]
[1761375791308,2.78,194.25,194.22,4.6331]
[1761375791515,2.78,194.25,194.2,4.6338]
[1761375791713,2.78,194.25,194.21,2.08]
[1761375796819,2.78,194.25,194.22,2.08]
[1761375805522,2.78,194.25,194.18,62.0]
[1761375805715,2.78,194.23,194.15,2.08]
[1761375805921,2.78,194.19,194.15,2.08]
[1761375807023,2.78,194.19,194.16,6.7146]
[1761375807322,2.78,194.19,194.17,2.08]
[1761375809724,2.78,194.19,194.16,6.7146]
[1761375811525,2.78,194.19,194.15,2.08]
[1761375811727,2.78,194.19,194.14,4.6352]
[1761375812430,2.78,194.19,194.14,6.7152]
[1761375815925,2.78,194.19,194.15,2.08]
[1761375817325,2.78,194.19,194.06,9.6092803]
[1761375817326,2.78,194.15,194.11,4.6358]
[1761375817527,2.78,194.15,194.12,2.08]
[1761375821933,2.78,194.15,194.11,4.6358]
[1761375822127,2.78,194.15,194.09,62.0]
[1761375822128,2.78,194.15,194.09,6.7264]
[1761375822335,2.61,194.11,194.02,2.09]
[1761375822534,19.792745,194.19,194.06,2.09]
[1761375822829,1.49480298,194.14,194.06,2.09]
[1761375823027,1.49480298,194.14,194.03,62.06]
[1761375823028,1.49480298,194.14,194.08,2.09]
[1761375823627,4.10480298,194.14,194.08,2.09]
[1761375823832,2.61,194.13,194.09,2.09]
[1761375826033,1.49480298,194.14,194.09,2.09]
[1761375826434,2.61,194.16,194.09,2.09]
[1761375826435,2.61,194.16,194.1,2.09]
[1761375831936,2.61,194.16,194.09,4.6363]
[1761375834037,2.61,194.13,194.1,2.09]
[1761375836940,2.61,194.13,194.09,4.6363]
[1761375837140,2.61,194.13,194.08,62.1]
[1761375837442,2.61,194.13,194.08,64.19]
[1761375837930,2.61,194.13,194.07,4.6369]
[1761375838134,15.0,194.19,194.03,2.09]
[1761375838135,4.10480298,194.11,194.03,2.09]
[1761375838936,4.10480298,194.11,194.02,62.08]
[1761375838937,4.10480298,194.11,194.04,4.6375]
[1761375839241,4.10480298,194.11,194.05,2.08]
[1761375842237,2.61,194.11,194.05,4.6373]
[1761375842441,4.10480298,194.11,194.06,2.08]
[1761375842645,2.74,194.1,194.06,2.08]
[1761375848355,2.67,194.14,194.06,2.08]
[1761375848556,5.3354854,194.16,194.08,2.08]
[1761375848761,2.67,194.17,194.1,2.08]
[1761375849760,2.67,194.2,194.1,2.08]
[1761375849960,6.5132386,194.2,194.1,2.08]
[1761375850260,3.84511175,194.19,194.1,2.08]
[1761375850456,2.67,194.2,194.1,2.08]
[1761375850657,6.51511175,194.2,194.15,2.08]
[1761375850857,3.84511175,194.19,194.15,2.08]
[1761375851265,2.67,194.2,194.15,2.08]
[1761375851560,6.51511175,194.2,194.15,2.08]
[1761375851755,3.84511175,194.19,194.15,2.08]
[1761375851957,2.67,194.2,194.15,2.08]
[1761375852161,6.51511175,194.2,194.15,2.08]
[1761375852371,3.84511175,194.19,194.15,2.08]
[1761375852757,2.67,194.2,194.15,2.08]
[1761375852958,6.51511175,194.2,194.15,2.08]
[1761375853157,3.84511175,194.19,194.15,2.08]
[1761375853864,6.51511175,194.19,194.15,2.08]
[1761375854060,2.67,194.19,194.15,2.08]
[1761375854759,6.51716164,194.19,194.15,2.08]
[1761375854961,2.67,194.19,194.15,2.08]
[1761375855568,6.51715771,194.19,194.15,2.08]
[1761375855767,2.67,194.19,194.15,2.08]
[1761375855964,2.67,194.19,194.07,2.08]
[1761375855965,2.67,194.15,194.07,2.08]
[1761375856267,2.67,194.12,194.07,2.08]
[1761375856463,1.49480298,194.13,194.07,2.08]
[1761375857061,1.49480298,194.13,194.08,2.08]
[1761375857265,4.16480298,194.13,194.08,2.08]
[1761375857566,2.67,194.12,194.08,2.08]
[1761375862571,2.67,194.12,194.08,6.7165]
[1761375868176,2.67,194.12,194.08,4.6365]
[1761375868379,2.67,194.12,194.09,2.08]
[1761375870073,4.16480298,194.13,194.1,2.08]
[1761375870772,1.49480298,194.13,194.1,2.08]
[1761375871067,2.67,194.12,194.1,2.08]
[1761375871872,2.67,194.12,194.09,4.6363]
[1761375872077,2.67,194.12,194.07,2.08]
[1761375872977,2.67,194.12,194.08,6.7166]
[1761375873375,2.67,194.12,194.08,4.6366]
[1761375873573,2.67,194.12,194.08,6.7166]
[1761375874474,2.67,194.12,194.09,2.08]
[1761375875875,2.67,194.12,194.08,4.6366]
[1761375876080,2.67,194.12,194.08,6.7166]
[1761375877383,2.67,194.12,194.07,62.14]
[1761375878484,2.67,194.12,194.07,64.22]
[1761375878786,2.86,194.11,194.07,2.08]
[1761375879888,2.86,194.11,194.06,66.7772]
[1761375881088,2.86,194.11,194.06,4.6372]
[1761375881890,2.86,194.11,194.05,62.14]
[1761375883680,2.86,194.11,194.04,68.8576]
[1761375884081,6.69573361,194.11,194.04,64.22]
[1761375884281,2.86,194.1,194.04,2.08]
[1761375885285,2.86,194.1,194.05,2.08]
[1761375889194,3.83528112,194.12,194.05,2.08]
[1761375889496,6.69528112,194.11,194.05,2.08]
[1761375889698,2.86,194.11,194.05,2.08]
[1761375890095,3.83517608,194.13,194.04,4.6376]
[1761375890096,3.83517608,194.12,194.04,2.08]
[1761375890694,6.69517608,194.12,194.04,2.08]
[1761375890895,2.86,194.12,194.07,2.08]
[1761375891495,6.69515851,194.12,194.07,2.08]
[1761375891692,2.86,194.12,194.08,2.08]
[1761375892396,6.69518829,194.12,194.08,2.08]
[1761375892597,2.86,194.12,194.08,2.08]
[1761375893290,6.69397564,194.12,194.08,2.08]
[1761375893489,2.86,194.12,194.08,2.08]
[1761375894093,6.69347789,194.12,194.08,2.08]
[1761375894292,2.86,194.12,194.08,2.08]
[1761375894891,6.69354929,194.12,194.08,2.08]
[1761375895093,2.86,194.12,194.08,2.08]
[1761375895794,2.86,194.11,194.08,2.08]
[1761375901002,2.75,194.09,194.05,68.8674]
[1761375901201,2.75,194.09,194.06,2.09]
[1761375902094,2.75,194.09,194.05,66.7774]
[1761375903296,2.75,194.09,194.05,68.8674]
[1761375911802,2.75,194.09,194.04,62.12]
[1761375912808,2.75,194.09,194.04,64.2]
[1761375917205,2.7,194.07,194.04,64.2]
[1761375920915,3.83544313,194.06,194.05,2.08]
[1761375921318,2.7,194.07,194.05,2.08]
[1761375924814,4.49329459,194.1,194.05,2.08]
[1761375925020,6.53396182,194.09,194.05,2.08]
[1761375925320,3.83396182,194.08,194.05,2.08]
[1761375925521,3.83396182,194.07,194.05,2.08]
[1761375925716,2.7,194.09,194.05,2.08]
[1761375925923,4.49329459,194.1,194.05,2.08]
[1761375925924,3.83358129,194.08,194.05,2.08]
[1761375926124,7.50035086,194.12,194.05,2.08]
[1761375926313,8.32566988,194.11,194.05,2.08]
[1761375926520,6.53368633,194.1,194.05,2.08]
[1761375926826,3.83368633,194.09,194.05,2.08]
[1761375927122,7.19198355,194.1,194.07,2.08]
[1761375927123,2.7,194.1,194.07,2.08]
[1761375927323,3.83409729,194.09,194.08,2.08]
[1761375927513,74.56672002,194.16,194.08,2.08]
[1761375927718,4.49291712,194.15,194.08,2.08]
[1761375928823,4.49291712,194.15,194.11,2.08]
[1761375928824,7.19291712,194.15,194.11,2.08]
[1761375929026,7.19291712,194.15,194.12,2.08]
[1761375929517,7.19291712,194.15,194.12,4.6356]
[1761375929824,4.49291712,194.15,194.13,2.08]
[1761375930022,7.19291712,194.15,194.13,2.08]
[1761375930519,67.06636916,194.16,194.13,2.08]
[1761375931123,67.06636916,194.16,194.14,2.08]
[1761375931328,4.80035086,194.2,194.14,2.08]
[1761375931525,2.7,194.18,194.14,2.08]
[1761375932930,2.7,194.18,194.14,6.7151]
[1761375933230,2.7,194.19,194.15,2.08]
[1761375938839,2.7,194.19,194.12,6.7257]
[1761375939338,2.7,194.19,194.12,4.6357]
[1761375939541,2.7,194.19,194.13,2.09]
[1761375940133,6.52108558,194.19,194.13,2.09]
[1761375940333,2.7,194.19,194.13,2.09]
[1761375940837,2.7,194.19,194.15,2.09]
[1761375944846,2.7,194.19,194.09,2.09]
[1761375945141,2.33666088,194.2,194.06,2.09]
[1761375945142,2.61,194.13,194.06,2.09]
[1761375946143,2.61,194.12,194.06,2.09]
[1761375946741,1.49525739,194.11,194.06,2.09]
[1761375946942,2.61,194.1,194.06,2.09]
[1761375951648,3.81390295,194.15,194.06,4.637]
[1761375951952,2.61,194.13,194.07,2.09]
[1761375954054,6.42390295,194.13,194.07,2.09]
[1761375954350,2.61,194.13,194.07,2.09]
[1761375956060,2.61,194.12,194.07,2.09]
[1761375966474,3.81031335,194.14,194.03,63.67525739]
[1761375966666,2.6,194.17,194.08,2.09]
[1761375967979,2.6,194.17,194.12,4.6357]
[1761375968177,2.6,194.17,194.13,2.08]
[1761375970379,2.85,194.16,194.13,2.08]
[1761375971979,1.49525739,194.14,194.05,2.08]
[1761375972284,2.85,194.13,194.05,2.08]
[1761375972473,2.85,194.09,193.98,2.08]
[1761375972677,4.80035086,194.14,193.98,2.08]
[1761375972678,2.85,194.06,193.98,2.08]
[1761375973078,2.85,194.06,194.0,2.08]
[1761375973581,4.34525739,194.06,194.0,2.08]
[1761375974381,1.49525739,194.03,194.0,2.08]
[1761375975382,4.34525739,194.06,194.0,2.08]
[1761375977081,1.49525739,194.02,194.0,2.08]
[1761375981395,1.49525739,194.06,194.0,2.08]
[1761375981589,2.85,194.09,193.93,62.0]
[1761375981590,1.49525739,194.05,193.94,2.08]
[1761375983096,1.49525739,194.05,194.01,2.08]
[1761375988591,4.34525739,194.05,194.01,2.08]
[1761375988795,2.85,194.04,194.01,2.08]
[1761375990499,1.49525739,194.05,194.02,2.08]
[1761375995502,2.85,194.04,194.02,2.08]
[1761375999706,2.85,194.04,194.01,4.6382]
[1761375999906,2.85,194.04,193.99,6.7289]
[1761376002610,2.85,194.04,194.0,2.09]
[1761376003001,2.85,194.04,193.99,6.7289]
[1761376006406,1.49525739,194.01,193.99,6.7289]
[1761376006604,4.16525739,194.01,193.99,6.7289]
[1761376006800,2.67,194.01,193.99,4.6389]
[1761376007411,2.67,194.01,193.99,6.7289]
[1761376009102,5.0083774,194.03,194.0,2.09]
[1761376009502,2.67,194.02,194.0,2.09]
[1761376009903,2.67,194.02,193.99,6.7289]
[1761376012408,2.67,194.02,193.97,4.6393]
[1761376012611,2.67,194.02,193.98,2.09]
[1761376013714,2.67,194.02,193.97,4.6393]
[1761376014315,2.67,194.02,193.95,68.9698]
[1761376014502,2.67,193.98,193.95,64.33]
[1761376018012,2.67,193.98,193.95,62.24]
[1761376018211,2.67,193.98,193.96,2.09]
[1761376018617,2.3383774,193.99,193.96,2.09]
[1761376018811,5.0383774,193.99,193.96,2.09]
[1761376022018,2.7,193.98,193.96,2.09]
[1761376022514,5.0383774,194.02,193.96,4.6394]
[1761376022720,2.3383774,194.02,193.97,2.09]
[1761376022922,5.0383774,194.02,193.97,2.09]
[1761376023221,5.0383774,194.02,193.98,2.09]
[1761376023515,2.3383774,194.02,193.98,2.09]
[1761376023818,2.7,194.01,193.98,2.09]
[1761376024920,2.7,194.01,193.98,64.35]
[1761376025115,2.7,194.01,193.98,62.26]
[1761376026421,2.7,194.01,193.98,64.35]
[1761376032619,2.3383774,194.02,193.99,2.09]
[1761376032824,5.0883774,194.04,193.99,2.09]
[1761376034121,5.0883774,194.04,194.0,2.09]
[1761376035121,2.3383774,194.04,194.0,2.09]
[1761376035823,2.75,194.07,194.0,2.09]
[1761376036026,4.00390513,194.06,194.01,2.09]
[1761376036220,4.00390513,194.05,194.01,2.09]
[1761376036420,4.00390513,194.04,194.01,2.09]
[1761376036620,2.75,194.06,194.01,2.09]
[1761376036820,2.75,194.04,194.01,2.09]
[1761376038020,2.75,194.07,194.01,2.09]
[1761376038328,6.75437055,194.06,194.01,2.09]
[1761376038625,4.00437055,194.05,194.01,2.09]
[1761376038821,4.00437055,194.04,194.01,2.09]
[1761376039021,2.75,194.06,194.01,2.09]
[1761376039222,4.00471129,194.05,194.02,2.09]
[1761376039524,2.75,194.08,194.02,2.09]
[1761376039827,6.75542663,194.07,194.02,2.09]
[1761376040126,4.00542663,194.06,194.02,2.09]
[1761376040427,2.75,194.06,194.02,2.09]
[1761376046430,2.75,194.09,194.02,2.09]
[1761376046624,6.70941447,194.08,194.02,2.09]
[1761376046824,2.75,194.06,194.02,2.09]
[1761376047528,2.75,194.06,194.03,2.09]
[1761376048227,4.7957718,194.11,194.03,2.09]
[1761376048434,2.75,194.09,194.03,2.09]
[1761376048637,2.75,194.07,194.03,2.09]
[1761376048837,3.95780677,194.06,194.03,2.09]
[1761376049126,2.75,194.1,194.05,2.09]
[1761376049433,17.3383774,194.12,194.05,2.09]
[1761376049434,6.70834833,194.09,194.05,2.09]
[1761376049632,2.75,194.09,194.05,2.09]
[1761376054338,2.75,194.09,194.05,64.29]
[1761376054926,2.75,194.09,194.05,2.09]
[1761376055129,2.75,194.09,194.05,64.29]
[1761376055330,2.75,194.09,194.05,68.9273]
[1761376055532,2.75,194.09,194.05,6.7273]
[1761376055734,2.75,194.09,194.05,68.9273]
[1761376056245,2.75,194.09,194.06,2.09]
[1761376059043,2.75,194.09,194.06,64.27]
[1761376059742,2.75,194.09,194.05,68.8973]
[1761376060738,2.83,194.08,194.05,68.8973]
[1761376061743,2.83,194.08,194.06,2.08]
[1761376062046,2.83,194.08,194.05,68.8973]
[1761376062341,2.83,194.08,194.06,2.08]
[1761376063336,2.83,194.08,194.05,66.8173]
[1761376063534,2.83,194.08,194.05,68.8973]
[1761376064742,2.83,194.08,194.06,2.08]
[1761376076053,2.83,194.11,194.06,6.717]
[1761376076259,6.79695838,194.1,194.07,2.08]
[1761376076462,6.79695838,194.09,194.08,62.14]
[1761376076955,6.79695838,194.09,194.08,64.22]
[1761376077345,3.96695838,194.09,194.08,64.22]
[1761376077546,2.83,194.12,194.08,62.14]
[1761376077750,3.96902695,194.11,194.09,2.08]
[1761376078051,3.96902695,194.1,194.09,2.08]
[1761376078857,2.83,194.12,194.09,2.08]
[1761376079057,3.96919337,194.11,194.09,6.7164]
[1761376079257,2.74,194.13,194.09,6.7164]
[1761376079458,6.70897055,194.12,194.1,2.08]
[1761376079660,3.96897055,194.11,194.1,2.08]
[1761376081166,2.74,194.12,194.1,2.08]
[1761376085674,2.74,194.14,194.1,2.08]
[1761376085861,2.74,194.12,194.1,2.08]
[1761376087574,2.74,194.14,194.11,2.08]
[1761376087765,6.68193705,194.13,194.11,2.08]
[1761376087973,3.96193705,194.12,194.11,2.08]
[1761376088772,2.72,194.13,194.11,2.08]
[1761376088973,68.17062015,194.15,194.11,2.08]
[1761376089168,2.72,194.13,194.11,2.08]
[1761376090274,2.72,194.15,194.13,2.09]
[1761376090678,2.72,194.17,194.13,2.09]
[1761376090872,2.72,194.15,194.13,2.09]
[1761376092775,2.72,194.15,194.12,68.8456]
[1761376093381,2.72,194.15,194.13,2.09]
[1761376093583,2.72,194.15,194.12,68.8456]
[1761376095278,2.72,194.15,194.13,2.09]
[1761376098877,3.95460166,194.17,194.13,6.7254]
[1761376099081,1.49529661,194.18,194.14,2.09]
[1761376099277,1.49529661,194.18,194.16,2.09]
[1761376099278,3.95460457,194.17,194.16,2.09]
[1761376099988,2.72,194.19,194.16,2.09]
[1761376100184,3.95427412,194.18,194.16,2.09]
[1761376100383,3.95380628,194.18,194.16,2.09]
[1761376100779,2.72,194.19,194.16,2.09]
[1761376107292,2.72,194.21,194.17,2.09]
[1761376108485,2.72,194.2,194.16,62.1]
[1761376110790,2.72,194.19,194.16,62.1]
[1761376113996,2.72,194.19,194.16,64.19]
[1761376114389,1.49529661,194.18,194.12,4.6357]
[1761376114585,2.72,194.17,194.12,4.6357]
[1761376115886,2.72,194.17,194.11,64.19]
[1761376116598,2.72,194.17,194.12,62.1]
[1761376118796,136.96741923,194.22,49.427,99.27198651]
[1761376118797,2.62,194.14,194.04,2.09]
[1761376119001,2.62,194.11,194.05,62.1]
[1761376119494,2.62,194.11,194.05,68.8272]
[1761376121602,2.62,194.1,194.06,2.09]
[1761376122002,2.62,194.14,194.07,4.6369]
[1761376122192,2.62,194.14,194.07,2.09]
[1761376122397,2.62,194.14,194.08,2.09]
[1761376122601,2.62,194.14,194.1,2.09]
[1761376123396,2.62,194.13,194.1,2.09]
[1761376125199,2.62,194.13,194.09,62.1]
[1761376125399,2.62,194.13,194.08,62.12]
[1761376126602,2.62,194.13,194.06,6.7272]
[1761376126801,2.62,194.13,194.07,62.12]
[1761376127707,3.95296439,194.12,194.07,62.12]
[1761376128002,2.62,194.11,194.07,64.21]
[1761376128395,2.62,194.11,194.07,2.09]
[1761376131406,2.62,194.1,194.07,2.09]
[1761376139310,2.62,194.1,194.04,2.08]
[1761376139516,2.83,194.09,194.05,62.12]
[1761376147133,2.83,194.09,194.05,64.2]
[1761376147335,2.83,194.09,194.06,2.08]
[1761376149334,2.83,194.09,194.05,62.12]
[1761376149636,2.83,194.09,194.05,64.2]
[1761376150833,2.83,194.09,194.06,2.08]
[1761376154933,2.3358456,194.13,194.06,2.08]
[1761376154934,2.73,194.12,194.06,2.08]
[1761376155133,6.67918802,194.11,194.06,2.08]
[1761376155333,2.73,194.11,194.06,2.08]
[1761376155732,6.68014555,194.11,194.06,2.08]
[1761376155927,2.73,194.11,194.06,2.08]
[1761376156241,3.9501434,194.1,194.06,2.08]
[1761376157540,6.6801434,194.1,194.06,2.08]
[1761376157740,2.73,194.1,194.06,2.08]
[1761376158337,6.68184801,194.09,194.06,2.08]
[1761376158541,2.73,194.09,194.06,2.08]
[1761376160347,3.95481192,194.08,194.06,2.08]
[1761376160544,2.73,194.09,194.06,2.08]
[1761376160744,3.9548116,194.08,194.06,2.08]
[1761376160946,2.73,194.09,194.06,2.08]
[1761376161243,3.9548116,194.08,194.06,2.08]
[1761376161442,2.73,194.09,194.06,2.08]
[1761376161747,3.9558833,194.08,194.06,2.08]
[1761376161946,2.73,194.09,194.06,2.08]
[1761376162149,6.68588489,194.08,194.06,2.08]
[1761376162448,2.73,194.08,194.06,2.08]
[1761376165354,2.73,194.08,194.05,62.12]
[1761376165553,2.73,194.08,194.05,64.2]